Cogmind - Beta 13 @@@ ROGUE MODE // 2024.04.25 @ 23:00:45 Player: Calliope Result: Destroyed by Y-45 Defender with Heavy Assault Rifle Performance ------------- Evolutions (2) 1000 Regions Visited (5) 1000 Robots Destroyed (4) 20 Value Destroyed (87) 87 Prototype IDs (10) 200 Alien Tech Used (0) 0 Bonus (0) 0 TOTAL SCORE: 2307 Bonus ------- None Cogmind --------- Core Integrity 0/550 Matter 280/300 Energy 96/100 System Corruption 2% Temperature Cool (27) Movement Hovering (80) Location -8/Storage Parts ------- > --- POWER (1) -------- (None) > --- PROPULSION (3) --- Combat Airjet > --- UTILITY (5) ------ Advanced Weight Redist. System System Shield > --- WEAPON (2) ------- (None) > --- INVENTORY (5) ---- Melee Analysis Suite System Shield Riot Gun Improved Grenade Launcher Peak State ------------ > --- POWER ------------ (None) > --- PROPULSION ------- Airjet Combat Airjet > --- UTILITY ---------- Advanced Weight Redist. System Machine Analyzer Improved Terrain Scanner Hacking Suite System Shield > --- WEAPON ----------- Makeshift Shrapnel Gun > --- INVENTORY -------- System Shield Riot Gun Improved Grenade Launcher [Rating: 27] Favorites ----------- Power Ion Engine Engine Ion Engine Propulsion Flight Unit Leg Aluminum Leg Hover Unit Combat Airjet Flight Unit Flight Unit Utility System Shield Device Advanced Weight Redist. System Storage Small Storage Unit Processor Machine Analyzer Hackware System Shield Weapon Assault Rifle Energy Gun Small Laser Ballistic Gun Assault Rifle Special Weapon Mining Laser Build | -11 -10 -10 -10 -8 -8 ------- Run | Yrd Mat Min Sub Mat Sto Slots Evolved 4 | . . . . 4 . Power . | . . . . . . Propulsion 1 | . . . . 1 . Utility 3 | . . . . 3 . Weapon . | . . . . . . Parts Attached 24 | 6 . 5 1 9 3 Power 4 | 1 . 1 . 2 . Engine 4 | 1 . 1 . 2 . Core . | . . . . . . Reactor . | . . . . . . Propulsion 7 | 2 . 3 . . 2 Treads . | . . . . . . Leg 3 | 2 . 1 . . . Wheel . | . . . . . . Hover 2 | . . . . . 2 Flight 2 | . . 2 . . . Utility 8 | 1 . . . 7 . Device 4 | . . . . 4 . Storage 1 | 1 . . . . . Processor 1 | . . . . 1 . Hackware 2 | . . . . 2 . Protection . | . . . . . . Artifact . | . . . . . . Weapon 5 | 2 . 1 1 . 1 Energy Gun 2 | 1 . 1 . . . Energy Cannon . | . . . . . . Ballistic Gun 2 | 1 . . . . 1 Ballistic Cannon . | . . . . . . Launcher . | . . . . . . Special Weapon 1 | . . . 1 . . Impact Weapon . | . . . . . . Slashing Weapon . | . . . . . . Piercing Weapon . | . . . . . . Special Melee Weapon . | . . . . . . Unidentified Prototypes . | . . . . . . Parts Lost 12 | . . 1 . 4 7 Power 2 | . . . . 1 1 Propulsion 3 | . . . . 1 2 Utility 3 | . . . . . 3 Weapon 4 | . . 1 . 2 1 Highest Loss Streak 4 | . . 1 . 4 3 To Critical Strikes . | . . . . . . Average Slot Usage (%) 68 | . 85 72 71 58 54 Engine 10 | . 14 14 14 7 . Leg 3 | . 28 3 . . . Hover 2 | . . . . . 15 Flight 18 | . . 24 28 15 . Device 3 | . . . . 8 13 Storage 2 | . 14 1 . . . Processor 1 | . . . . 3 8 Hackware 3 | . . . . 11 13 Energy Gun 8 | . 14 14 8 . . Ballistic Gun 11 | . 14 14 14 6 3 Special Weapon 1 | . . . 6 5 . Naked Turns . | . . . . . . Heaviest Build 14 | 14 14 14 8 10 6 Greatest Support 29 | 20 20 20 8 17 29 Greatest Overweight (x) 3 | . . 3 . 1 . Average Overweight (x) . | . . . . . . Largest Inventory Capacity 8 | 8 8 8 5 5 5 Average Capacity 5 | 6 8 5 5 5 5 Most Carried 8 | 6 8 8 5 5 5 Average Carried 4 | 3 6 5 4 4 3 Final Capacity 8 | 8 8 5 5 5 5 Final Carried 8 | 6 8 5 5 5 4 Class Distribution -------------------- 85% | Mutant 14% | Hacker-Mutant Dominant Class ---------------- Mutant | -10/Materials Mutant | -10/Mines Mutant | -10/Subcaves Hacker-Mutant | -8/Materials Mutant | -8/Storage Resources | -11 -10 -10 -10 -8 -8 ----------- Run | Yrd Mat Min Sub Mat Sto Matter Collected 400 | 204 44 78 . . 74 Remotely . | . . . . . . Salvage Created 102 | . 44 58 . . . Parts 4 | . 3 1 . . . Haulers Intercepted . | . . . . . . Recyclers Shooed . | . . . . . . Parts Field Recycled . | . . . . . . Retrieved Matter . | . . . . . . Parts Self-Destructed . | . . . . . . Prevented . | . . . . . . Kills | -11 -10 -10 -10 -8 -8 ------- Run | Yrd Mat Min Sub Mat Sto Combat Hostiles Destroyed 4 | . 3 1 . . . Guns 3 | . 2 1 . . . AOE 1 | . 1 . . . . Classes Destroyed 2 | . 1 1 . . . Swarmer 3 | . 3 . . . . Grunt 1 | . . 1 . . . Best Kill Streak 3 | . 3 1 . . . Combat Bots Only 3 | . 3 1 . . . Max Kills in Single Turn 2 | . 2 1 . . . Gunslinging 1 | . 1 . . . . Exploded 1 | . 1 . . . . Melee . | . . . . . . Uniques/NPCs Destroyed . | . . . . . . Combat | -11 -10 -10 -10 -8 -8 -------- Run | Yrd Mat Min Sub Mat Sto Hostile Shots Fired 147 | . 10 13 . 65 59 Missed 63 | . 1 3 . 40 19 Damage Taken 1327 | . 103 138 . 331 755 Core 600 | . 18 28 . 100 454 Absorbed by Shields . | . . . . . . Core Remaining (%) 90 | 100 . . 81 . . Volleys Fired 17 | . 3 4 5 . 5 Largest 2 | . 2 2 1 . 1 Hottest 100 | . 60 60 100 . 24 Shots Fired 24 | . 6 8 5 . 5 Gun 19 | . 6 8 . . 5 Cannon . | . . . . . . Launcher . | . . . . . . Special 5 | . . . 5 . . Kinetic 12 | . 3 4 . . 5 Thermal 7 | . . 2 5 . . Explosive . | . . . . . . Electromagnetic 5 | . 3 2 . . . Robot Hit Streak 4 | . 2 4 . . 4 Robot Miss Streak 4 | . 1 1 . . 4 Penetration Max . | . . . . . . Secondary Targets 1 | . 1 . . . . Max Gunslinging Chain 1 | . 1 . . . . Shots Hit Robots 14 | . 4 5 . . 5 Core Hits 7 | . 3 3 . . 1 Critical Kills . | . . . . . . Critical Parts Destroyed . | . . . . . . Critical Strikes . | . . . . . . Melee Attacks . | . . . . . . Impact . | . . . . . . Slashing . | . . . . . . Piercing . | . . . . . . Sneak Attacks . | . . . . . . Combat Hostiles . | . . . . . . Follow-up Attacks . | . . . . . . Damage Inflicted 248 | . 109 59 . . 80 Guns 175 | . 41 59 . . 75 Cannons . | . . . . . . Explosions 68 | . 68 . . . . Melee . | . . . . . . Ramming 5 | . . . . . 5 Kinetic 118 | . 10 33 . . 75 Thermal 79 | . 68 11 . . . Explosive . | . . . . . . Electromagnetic 46 | . 31 15 . . . Impact . | . . . . . . Slashing . | . . . . . . Piercing . | . . . . . . Highest Corruption 2 | . . . . . 2 Average Corruption 2 | . . . . . 2 Corruption Purged . | . . . . . . Corruption Blocked . | . . . . . . Effects 1 | . . . . . 1 Energy Discharges 1 | . . . . . 1 Overload Shots . | . . . . . . Overflow Damage . | . . . . . . Projectiles . | . . . . . . Explosions . | . . . . . . Melee . | . . . . . . Knockbacks . | . . . . . . Impact . | . . . . . . Kinetic . | . . . . . . Secondary . | . . . . . . Self-Inflicted Damage 27 | . 25 . . . 2 Shots 1 | . 1 . . . . Rammed 2 | . . . . . 2 Targets Rammed 2 | . . . . . 2 Kicked . | . . . . . . Crushed . | . . . . . . Highest Temperature 45 | . 12 45 . 9 38 Average Temperature 22 | . 12 29 . 9 26 Received Heat Transfer 504 | . . 75 . 126 303 Siege Activations . | . . . . . . Robots Corrupted . | . . . . . . Combat Hostiles . | . . . . . . Parts Fried . | . . . . . . Impact Corruptions . | . . . . . . Robots Melted . | . . . . . . Combat Hostiles . | . . . . . . Parts Melted . | . . . . . . Heat Transferred 75 | . 50 25 . . . Parts Sabotaged . | . . . . . . Parts Stolen . | . . . . . . Parts Stripped . | . . . . . . Power Chain Reactions 1 | . 1 . . . . Alert | -11 -10 -10 -10 -8 -8 ------- Run | Yrd Mat Min Sub Mat Sto Peak Influence 195 | . 90 104 . 195 116 Initial 81 | . . 34 . 25 81 Average 79 | . 50 88 . 98 96 Maximum Alert Level . | . . . . . . Low Security (%) 100 | 100 100 100 . 100 100 Level 1 . | . . . . . . Level 2 . | . . . . . . Level 3 . | . . . . . . Level 4 . | . . . . . . Level 5 . | . . . . . . High Security . | . . . . . . Max Security . | . . . . . . Squads Dispatched 5 | . 1 . . 1 3 Investigation 1 | . 1 . . . . Extermination . | . . . . . . Reinforcement 2 | . . . . 1 1 Assault . | . . . . . . Garrison 2 | . . . . . 2 Intercept . | . . . . . . Searches Triggered . | . . . . . . Construction Impeded . | . . . . . . Haulers Reinforced . | . . . . . . Active Scanning Responses . | . . . . . . Cargo Convoy Interrupts . | . . . . . . Stealth | -11 -10 -10 -10 -8 -8 --------- Run | Yrd Mat Min Sub Mat Sto Distress Signals 1 | . . . . . 1 Communications Jammed . | . . . . . . Distress Signals . | . . . . . . Times Spotted 51 | . 3 4 . 21 23 Peak Tracking Total 14 | . 3 2 . 14 11 Tactical Retreats 3 | . . . . 2 1 Traps | -11 -10 -10 -10 -8 -8 ------- Run | Yrd Mat Min Sub Mat Sto Traps Triggered 2 | . 1 . . . 1 Indirectly . | . . . . . . Trap Hack Attempts . | . . . . . . Triggered . | . . . . . . Disarmed . | . . . . . . Reprogrammed . | . . . . . . Reused . | . . . . . . Traps Extracted . | . . . . . . Installed . | . . . . . . Triggered . | . . . . . . Machines | -11 -10 -10 -10 -8 -8 ---------- Run | Yrd Mat Min Sub Mat Sto Machines Disabled 2 | . 1 . 1 . . Max in Single Turn 1 | . 1 . 1 . . Machines Repaired . | . . . . . . Machines Dismantled . | . . . . . . Machines Sabotaged . | . . . . . . Overloaded Fab Kills . | . . . . . . Hacking | -11 -10 -10 -10 -8 -8 --------- Run | Yrd Mat Min Sub Mat Sto Machines Accessed 2 | . 1 . 1 . . Terminals . | . . . . . . Fabricators . | . . . . . . Repair Stations . | . . . . . . Recycling Units 1 | . 1 . . . . Scanalyzers . | . . . . . . Garrison Access . | . . . . . . Total Hacks 10 | . 1 . 9 . . Successful 10 | . 1 . 9 . . Failed . | . . . . . . Catastrophic . | . . . . . . Database Lockouts . | . . . . . . Manual 1 | . 1 . . . . Terminals . | . . . . . . Fabricators . | . . . . . . Repair Stations . | . . . . . . Recycling Units 1 | . 1 . . . . Scanalyzers . | . . . . . . Garrison Access . | . . . . . . Terminal Hacks 9 | . . . 9 . . Record 8 | . . . 8 . . Derelict Proto ID Bank 1 | . . . 1 . . Fabricator Hacks . | . . . . . . Repair Station Hacks . | . . . . . . Recycling Unit Hacks . | . . . . . . Scanalyzer . | . . . . . . Garrison Access Hacks . | . . . . . . Unauthorized Hacks 1 | . 1 . . . . Terminals . | . . . . . . Fabricators . | . . . . . . Repair Stations . | . . . . . . Recycling Units 1 | . 1 . . . . Reject 1 | . 1 . . . . Scanalyzers . | . . . . . . Garrison Access . | . . . . . . Data Cores Recovered . | . . . . . . Used . | . . . . . . Hacking Detections . | . . . . . . Full Trace Events . | . . . . . . Feedback Events . | . . . . . . Feedback Blocked . | . . . . . . Robot Schematics Acquired . | . . . . . . Robots Built . | . . . . . . Authchips . | . . . . . . Time . | . . . . . . Total Robot Build Rating . | . . . . . . Part Schematics Acquired . | . . . . . . Parts Built . | . . . . . . Authchips . | . . . . . . Time . | . . . . . . Total Part Build Rating . | . . . . . . Parts Repaired . | . . . . . . Time . | . . . . . . Parts Recycled . | . . . . . . Recycled Matter . | . . . . . . Retrieved Matter . | . . . . . . Retrieved Components . | . . . . . . Parts Scanalyzed . | . . . . . . Part Schematics Acquired . | . . . . . . Parts Damaged . | . . . . . . Bothacking | -11 -10 -10 -10 -8 -8 ------------ Run | Yrd Mat Min Sub Mat Sto Used RIF Installer . | . . . . . . Robots Hacked . | . . . . . . Non-combat . | . . . . . . Combat . | . . . . . . Robot Hacks Applied . | . . . . . . Relay Couplers Released . | . . . . . . Fabnet Peak Effective % . | . . . . . . Robots Rewired . | . . . . . . Allies Hacked . | . . . . . . Hacks Repelled . | . . . . . . Allies | -11 -10 -10 -10 -8 -8 -------- Run | Yrd Mat Min Sub Mat Sto Total Allies 1 | . . 1 . . . Largest Group 1 | . . 1 . . . Highest-Rated Group 31 | . . 31 . . . Highest-Rated Ally 31 | . . 31 . . . Total Orders . | . . . . . . Ally Attacks 7 | . . 7 . . . Total Damage 106 | . . 106 . . . Kills 2 | . . 2 . . . Allies Corrupted . | . . . . . . Allies Melted . | . . . . . . Intel | -11 -10 -10 -10 -8 -8 ------- Run | Yrd Mat Min Sub Mat Sto Robot Analysis Total . | . . . . . . Derelict Logs Recovered . | . . . . . . Drone Launches . | . . . . . . Drone Recoveries . | . . . . . . Exploration | -11 -10 -10 -10 -8 -8 ------------- Run | Yrd Mat Min Sub Mat Sto Turns Passed 890 | 70 77 355 138 130 120 Spaces Moved 1031 | 51 55 206 294 265 160 Core 16 | 8 . . . . 8 Treads . | . . . . . . Legs 111 | 43 55 13 . . . Wheels . | . . . . . . Hover 127 | . . . . . 127 Flight 777 | . . 193 294 265 25 Fastest Speed 37 | 50 120 37 37 37 40 Average Speed 51 | 109 120 46 37 39 61 Slowest Speed 280 | 120 120 280 37 117 80 Overloaded Moves . | . . . . . . Propulsion Burnouts . | . . . . . . Robots Hopped 13 | . . 2 . 10 1 Cave-ins Triggered . | . . . . . . Exploration Rate (%) 24 | 4 14 37 21 33 35 Regions Visited 5 Branch Regions 3 Pre-discovered Areas . | . . . . . . Known Exits Taken . | . . . . . . Unknown Exits Taken 5 | 1 1 1 1 1 . Scrap Searched 5 | . . 1 4 . . Spaces Dug . | . . . . . . Terrain Destroyed 4 | . 4 . . . . Melee . | . . . . . . Projectile . | . . . . . . AOE 4 | . 4 . . . . Terrain Rammed . | . . . . . . Walls Destroyed . | . . . . . . Machines Disabled . | . . . . . . Actions | -11 -10 -10 -10 -8 -8 --------- Run | Yrd Mat Min Sub Mat Sto Total 1343 | 62 60 462 309 276 174 Wait 243 | . 1 230 2 6 4 Move 1001 | 50 54 201 293 245 158 Hop 12 | . . 2 . 9 1 Pick Up 23 | 6 2 7 4 3 1 Fast Attach 16 | 6 . 2 . 7 1 Attach 4 | . . 1 . 1 2 Detach 2 | . . 2 . . . Swap 4 | . . 2 1 1 . Drop 19 | . . 11 4 4 . Fire 17 | . 3 4 5 . 5 Melee . | . . . . . . Ram 2 | . . . . . 2 Kick . | . . . . . . Crush . | . . . . . . Escape Stasis . | . . . . . . Rewire . | . . . . . . Trap . | . . . . . . Miscellaneous . | . . . . . . Route ------- -11/Scrapyard -10/Materials -10/Mines -10/Subcaves -8/Materials -8/Storage History --------- Turn | Location | Event 4 | -11/Scrapyard | Discovered new exit (range 16) 71 | -11/Scrapyard | Entered Materials 124 | -10/Materials | Discovered new exit (range 16) 148 | -10/Materials | Entered Mines 220 | -10/Mines | Received a Mining Laser from a helpful Derelict 308 | -10/Mines | Build established: Mutant 490 | -10/Mines | Discovered new exit (range 5) 503 | -10/Mines | Entered Subcaves 605 | -10/Subcaves | Visited 4L-MR0's lab 631 | -10/Subcaves | Discovered new exit (range 7) 641 | -10/Subcaves | Entered Materials 641 | -8/Materials | Evolved 4 slots: Propulsion x1, Utility x3 767 | -8/Materials | Discovered new exit (range 10) 771 | -8/Materials | Entered Storage 773 | -8/Storage | Lost 4 parts (1p1n2w) 773 | -8/Storage | Assembled infested ambush trap array 782 | -8/Storage | Core integrity fell below 50% 784 | -8/Storage | Garrison activated, responded to threat 885 | -8/Storage | Core integrity fell below 20% 891 | -8/Storage | Destroyed by Y-45 Defender with Heavy Assault Rifle Last Messages --------------- 00835_ Hacking Suite destroyed. 00852_ O-16 Technician: "IFF HANDSHAKE FAILED. SECURING TERMINAL." 00852_ O-16 Technician uses terminal to summon reinforcements. 00852_ ALERT: Hostiles spotted, dispatching reinforcements to Terminal S002. 00852_ O-16 Technician locks terminal. 00858_ Acquired Melee Analysis Suite. 00878_ Slammed into G-47 Trooper. 00878_ Destabilizing: System corrupted (+2). 00879_ Slammed into G-47 Trooper. 00879_ Machine Analyzer broken. 00879_ Destabilizing: Short circuit. 00879_ Mak. Shrapnel Gun destroyed. 00883_ Airjet destroyed. 00883_ Critical hit (Burn: +37). 00884_ System corrupted: Energy discharge (-32). 00884_ Broken Machine Analyzer destroyed. 00891_ Critical hit (Burn: +37). Map ----- +----------------------------------------------------+ | ?????????# #????????????????? | | ?????????#^ #???#######??????? | | ?????????# #???# #??????? | | ??######?# !! #???# #??????? | | ??# """ # ! #???# +??????? | | ??# """ # ##### #??????? | | ??# """ / #??????? | | ??# # ####+###### ##??????? | | ??# # # # #???????? | | ??# ?+ + "??" # #???????? | | ??###+##?#### ""??" #g #???????? | | ???## ##????# ""???" + #???????? | | #### ###### "???"" #Y ##??????? | | + "??"" # gT#??????? | | ### ###### """" #gg ##??????? | | #?### #????# # g#???####? | | #???# #????########### #???""" # | | #???# #??????????????# #?? "Y" # | | #???# #??????????????# #? # | | #??? #??????????????# # # | | +#??? #??????????????# # # | | ????? #??????????????# gg/ # | | ????? ????????# ###### Y# """"" # | | ????? ??? #?"""""?? | | ????? ?????????###+### #?"""""?? | | ????? ???????????????# @#???????? | | ????? ???????????????# #???????? | | ????? ???????????????# #???????? | | ????? ???????????????# r #???????? | | ??????????????????????# #???????? | | ??????????????????????# #???????? | | ??????????????????????+ #???????? | | ??????????????????????# #???????? | | ??????????????????????# #???????? | | ??????????????????????# ????????? | | ??????????????????????# ????????? | | ??????????????????????# ????????? | | ??????????????????????# ????????? | | ??????????????????????# ????????? | | ??????????????????????# ????????? | | ??????????????????????? ????????? | | ??????????????????????????????????? | | ??????????????????????????????????? | | ??????????????????????????????????? | | ??????????????????????????????????? | | ??????????????????????????????????? | | ??????????????????????????????????? | | ??????????????????????????????????? | | ??????????????????????????????????? | | ??????????????????????????????????? | +----------------------------------------------------+ Best States ------------- Heat Dissipation 45 Energy Generation 10 Energy Capacity 250 Matter Stores 300 Matter Capacity 300 Sight Range 16 Terrain Scan Range 16 Terrain Scan Density 10 Additional Mass Support 9 Evasion (%) 62 Offensive Hacking 10 Defensive Hacking 10 Item Schematics ----------------- None Robot Schematics ------------------ None Fabricated ------------ Nothing Alien Tech Used ----------------- None Achievements -------------- None Challenges ------------ None Game ------ Seed LinkedRiotNanovents Manual? 0 Play Time 00:17:11 Cumulative 20.5 hours Start 2024.04.25 @ 22:40:42 End 2024.04.25 @ 23:00:45 Sessions 1 Manual Loads 0 Difficulty Rogue Special Mode None Game No. 37 Rogue 35 Adventurer 0 Explorer 2 Win Type - Total 0 Types 0/0/0/0/0/0/0/0/0 Lore% 8 Gallery% 24 Achievement% 23 Wizard Run 0 Options --------- Layout 2 ASCII 0 Keyboard 1 Movement Vi Keybinds 0 Fullscreen 2 Font 32/SmallcapsGlow Map View 50x44 Zoom Use 0% Tactical HUD 1 Map Filters NONE Filters NONE Steam 1 RUN: 3ed8ea60-a883-41a5-b395-1531e9801b4a